Cogmind - Beta 16.1 @@@ ROGUE MODE // 2026.03.19 @ 03:18:41 Player: Cica Result: Destroyed by D-53 Grenadier with Mini Grenade Launcher Performance ------------- Evolutions (0) 0 Regions Visited (2) 400 Robots Destroyed (16) 80 Value Destroyed (196) 196 Prototype IDs (0) 0 Alien Tech Used (0) 0 Bonus (0) 0 TOTAL SCORE: 676 Bonus ------- None Cogmind --------- Core Integrity 0/250 Matter 98/300 Energy 93/100 System Corruption 3% Temperature Cool (0) Movement Core (150) Ox2 Location -10/Mines Parts ------- > --- POWER (1) -------- (None) > --- PROPULSION (2) --- (None) > --- UTILITY (2) ------ Heat Sink Small Storage Unit > --- WEAPON (2) ------- Light Assault Rifle > --- INVENTORY (8) ---- Light Ion Engine Light Treads Light Treads Medium Laser Small Laser Light Assault Rifle Datajack Peak State ------------ > --- POWER ------------ Ion Engine > --- PROPULSION ------- Aluminum Leg Aluminum Leg > --- UTILITY ---------- Heat Sink Small Storage Unit > --- WEAPON ----------- Light Assault Rifle Enhanced Flamer > --- INVENTORY -------- Light Ion Engine Light Treads Light Treads Medium Laser Small Laser Light Assault Rifle Light Assault Rifle Datajack [Rating: 9] Favorites ----------- Power Ion Engine Engine Ion Engine Propulsion Aluminum Leg Leg Aluminum Leg Utility Small Storage Unit Device Heat Sink Storage Small Storage Unit Weapon Light Assault Rifle Ballistic Gun Light Assault Rifle Launcher Grenade Launcher Special Weapon Enhanced Flamer Build | -11 -10 -10 ------- Run | Yrd Mat Min Slots Evolved . | . . . Power . | . . . Propulsion . | . . . Utility . | . . . Weapon . | . . . Parts Attached 13 | 6 4 3 Power 3 | 1 1 1 Engine 3 | 1 1 1 Core . | . . . Reactor . | . . . Propulsion 2 | 2 . . Treads . | . . . Leg 2 | 2 . . Wheel . | . . . Hover . | . . . Flight . | . . . Utility 3 | 1 2 . Device 2 | . 2 . Storage 1 | 1 . . Processor . | . . . Hackware . | . . . Protection . | . . . Artifact . | . . . Weapon 5 | 2 1 2 Energy Gun . | . . . Energy Cannon . | . . . Ballistic Gun 3 | 2 . 1 Ballistic Cannon . | . . . Launcher 1 | . 1 . Special Weapon 1 | . . 1 Impact Weapon . | . . . Slashing Weapon . | . . . Piercing Weapon . | . . . Special Melee Weapon . | . . . Unidentified Prototypes . | . . . Parts Lost 8 | . 3 5 Power 2 | . 1 1 Propulsion 2 | . . 2 Utility 1 | . 1 . Weapon 3 | . 1 2 Highest Loss Streak 5 | . 3 5 To Critical Strikes 1 | . . 1 Average Backups 6 | 2 6 7 Power 1 | . 1 1 Propulsion 1 | . 2 2 Utility . | . . . Weapon 3 | . 2 3 Tool/Special . | . . . Unused Backups 8 | . . 8 Power 2 | . . 2 Propulsion 2 | . . 2 Utility . | . . . Weapon 3 | . . 3 Tool/Special 1 | . . 1 Average Slot Usage (%) 96 | . 93 98 Engine 13 | . 14 13 Leg 27 | . 28 27 Device 11 | . 7 14 Storage 14 | . 14 14 Ballistic Gun 23 | . 22 23 Launcher 3 | . 5 2 Peak Build Rating 9 | 6 7 9 Average Rating 6 | 3 6 7 On Entrance 4 | . 6 7 Avg Prop Armor Cover (%) . | . . . Naked Turns . | . . . Heaviest Build 14 | 13 14 14 Greatest Support 20 | 20 20 20 Greatest Overweight (x) 2 | . . 2 Average Overweight (x) . | . . . Largest Inventory Capacity 8 | 8 8 8 Average Capacity 7 | 6 8 8 Most Carried 8 | 4 8 8 Average Carried 6 | 2 6 7 Final Capacity 8 | 8 8 8 Final Carried 8 | 4 8 7 Class Distribution -------------------- 100% | Mutant Dominant Class ---------------- Mutant | -10/Materials Mutant | -10/Mines Resources | -11 -10 -10 ----------- Run | Yrd Mat Min Matter Collected 252 | . 134 118 Remotely . | . . . Salvage Created 243 | . 203 40 Parts 27 | . 18 9 Haulers Intercepted . | . . . Recyclers Shooed . | . . . Parts Field Recycled . | . . . Retrieved Matter . | . . . Parts Self-Destructed . | . . . Prevented . | . . . Parts Restored . | . . . Kills | -11 -10 -10 ------- Run | Yrd Mat Min Combat Hostiles Destroyed 15 | . 11 4 Guns 11 | . 10 1 AOE 4 | . 1 3 Classes Destroyed 5 | . 3 2 Worker 1 | . 1 . Tunneler 1 | . . 1 Swarmer 12 | . 9 3 Grunt 2 | . 2 . Assembled 1 | . . 1 Best Kill Streak 4 | . 3 4 Combat Bots Only 3 | . 3 3 Max Kills in Single Turn 2 | . 2 2 Gunslinging . | . . . Exploded 2 | . 1 2 Melee . | . . . Uniques/NPCs Destroyed . | . . . Combat | -11 -10 -10 -------- Run | Yrd Mat Min Hostile Shots Fired 109 | . 84 25 Missed 33 | . 29 4 Hits 76 | . 55 21 Melee 1 | . . 1 Projectile 75 | . 55 20 AOE 7 | . . 7 Critical Strikes 1 | . . 1 Damage Taken 946 | . 463 483 Core 252 | . 80 172 Absorbed by Shields . | . . . Core Remaining (%) 100 | 100 . . Volleys Fired 42 | . 33 9 Largest 2 | . 2 2 Hottest 100 | . 50 100 Shots Fired 79 | . 63 16 Gun 72 | . 61 11 Cannon . | . . . Launcher 4 | . 2 2 Special 3 | . . 3 Kinetic 72 | . 61 11 Thermal 3 | . . 3 Explosive 4 | . 2 2 Electromagnetic . | . . . Robot Hit Streak 5 | . 5 4 Robot Miss Streak 4 | . 4 2 Penetration Max . | . . . Secondary Targets 2 | . 2 . Max Gunslinging Chain 1 | . 1 . Shots Hit Robots 43 | . 34 9 Core Hits 26 | . 17 9 Critical Kills . | . . . Critical Parts Destroyed . | . . . Critical Strikes . | . . . Melee Attacks . | . . . Impact . | . . . Slashing . | . . . Piercing . | . . . Sneak Attacks . | . . . Combat Hostiles . | . . . Follow-up Attacks . | . . . Damage Inflicted 767 | . 493 274 Guns 417 | . 374 43 Cannons . | . . . Explosions 282 | . 119 163 Melee . | . . . Ramming 35 | . . 35 Kinetic 417 | . 374 43 Thermal 33 | . . 33 Explosive 282 | . 119 163 Electromagnetic . | . . . Impact . | . . . Slashing . | . . . Piercing . | . . . Highest Corruption 3 | . 3 3 Average Corruption 2 | . 2 3 Corruption Purged . | . . . Corruption Blocked . | . . . Effects 12 | . 3 9 Message Errors 5 | . 1 4 Matter Fused 4 | . 1 3 Data Loss (minor) 2 | . 1 1 Misfires 1 | . . 1 Overload Shots . | . . . Overflow Damage . | . . . Projectiles . | . . . Explosions . | . . . Melee . | . . . Knockbacks 2 | . . 2 Impact 2 | . . 2 Kinetic . | . . . Secondary . | . . . Self-Inflicted Damage 40 | . . 40 Shots 2 | . . 2 Rammed . | . . . Targets Rammed 13 | . . 13 Kicked 13 | . . 13 Crushed . | . . . Highest Temperature 37 | . 32 37 Average Temperature 17 | . 10 25 Received Heat Transfer 88 | . 48 40 Siege Activations . | . . . Martial Activations . | . . . Shielding Activations . | . . . Robots Disrupted . | . . . Combat Hostiles . | . . . Robots Corrupted . | . . . Combat Hostiles . | . . . Parts Fried . | . . . Impact Corruptions . | . . . Robots Melted . | . . . Combat Hostiles . | . . . Parts Melted . | . . . Heat Transferred 240 | . . 240 Parts Sabotaged . | . . . Parts Stolen . | . . . Parts Stripped . | . . . Power Chain Reactions . | . . . Alert | -11 -10 -10 ------- Run | Yrd Mat Min Maximum Alert Level . | . . . Low Security (%) 100 | 100 100 100 Level 1 . | . . . Level 2 . | . . . Level 3 . | . . . Level 4 . | . . . Level 5 . | . . . High Security . | . . . Max Security . | . . . Peak Influence 178 | . 178 104 Initial 43 | . . 43 Average 51 | . 86 28 Influence Increases 372 | . 281 91 Destroy 0b10 Robot/C 280 | . 220 60 Destroy 0b10 Robot/NC 10 | . 5 5 Destroy Leader 50 | . 40 10 Successful Hack 3 | . 3 . Destroy Structure 29 | . 13 16 Influence Decreases 372 | . 170 202 Entered New Map 68 | . . 68 Time Decay 274 | . 140 134 Lost Part 30 | . 30 . Squads Dispatched 1 | . 1 . Investigation . | . . . Extermination . | . . . Reinforcement 1 | . 1 . Assault . | . . . Garrison . | . . . Intercept . | . . . Searches Triggered . | . . . Construction Impeded . | . . . Haulers Reinforced . | . . . Active Scanning Responses . | . . . Cargo Convoy Interrupts . | . . . Stealth | -11 -10 -10 --------- Run | Yrd Mat Min Distress Signals 1 | . . 1 Communications Jammed . | . . . Distress Signals . | . . . Times Spotted 33 | . 15 18 Peak Tracking Total 11 | . 6 11 Tactical Retreats . | . . . Traps | -11 -10 -10 ------- Run | Yrd Mat Min Traps Triggered 2 | . 2 . Indirectly . | . . . Trap Hack Attempts . | . . . Triggered . | . . . Disarmed . | . . . Reprogrammed . | . . . Reused . | . . . Traps Extracted . | . . . Installed . | . . . Triggered . | . . . Machines | -11 -10 -10 ---------- Run | Yrd Mat Min Machines Disabled . | . . . Max in Single Turn . | . . . Machines Repaired . | . . . Machines Dismantled . | . . . Machines Sabotaged . | . . . Overloaded Fab Kills . | . . . Hacking | -11 -10 -10 --------- Run | Yrd Mat Min Machines Accessed 1 | . 1 . Terminals 1 | . 1 . Fabricators . | . . . Repair Stations . | . . . Recycling Units . | . . . Scanalyzers . | . . . Garrison Access . | . . . Total Hacks 5 | . 5 . Successful 2 | . 2 . Failed 3 | . 3 . Catastrophic . | . . . Database Lockouts . | . . . Manual . | . . . Terminals 5 | . 5 . Fabricators . | . . . Repair Stations . | . . . Recycling Units . | . . . Scanalyzers . | . . . Garrison Access . | . . . Terminal Hacks 2 | . 2 . Locate Traps 1 | . 1 . Maintenance Status 1 | . 1 . Fabricator Hacks . | . . . Repair Station Hacks . | . . . Recycling Unit Hacks . | . . . Scanalyzer . | . . . Garrison Access Hacks . | . . . Unauthorized Hacks . | . . . Terminals . | . . . Fabricators . | . . . Repair Stations . | . . . Recycling Units . | . . . Scanalyzers . | . . . Garrison Access . | . . . Data Cores Recovered . | . . . Used . | . . . Hacking Detections . | . . . Full Trace Events . | . . . Feedback Events . | . . . Feedback Blocked . | . . . Robot Schematics Acquired . | . . . Robots Built . | . . . Authchips . | . . . Time . | . . . Total Robot Build Rating . | . . . Part Schematics Acquired . | . . . Parts Built . | . . . Authchips . | . . . Time . | . . . Total Part Build Rating . | . . . Part Studies Acquired . | . . . Parts Repaired . | . . . Time . | . . . Parts Recycled . | . . . Recycled Matter . | . . . Retrieved Matter . | . . . Retrieved Components . | . . . Parts Scanalyzed . | . . . Part Schematics Acquired . | . . . Parts Damaged . | . . . Bothacking | -11 -10 -10 ------------ Run | Yrd Mat Min Used RIF Installer . | . . . Robots Hacked . | . . . Non-combat . | . . . Combat . | . . . Robot Hacks Applied . | . . . Relay Couplers Released . | . . . Fabnet Peak Effective % . | . . . Robots Rewired . | . . . Allies Hacked . | . . . Hacks Repelled . | . . . Allies | -11 -10 -10 -------- Run | Yrd Mat Min Total Allies . | . . . Largest Group . | . . . Highest-Rated Group . | . . . Highest-Rated Ally . | . . . Total Orders . | . . . Ally Attacks . | . . . Total Damage . | . . . Kills . | . . . Allies Corrupted . | . . . Allies Melted . | . . . Intel | -11 -10 -10 ------- Run | Yrd Mat Min Active Infowar (turns) 205 | . 205 . Sensors 205 | . 205 . Robot Analysis Total . | . . . Derelict Logs Recovered . | . . . Drone Launches . | . . . Drone Recoveries . | . . . Exploration | -11 -10 -10 ------------- Run | Yrd Mat Min Turns Passed 882 | 57 376 449 Spaces Moved 570 | 38 222 310 Core 7 | 6 . 1 Treads . | . . . Legs 563 | 32 222 309 Wheels . | . . . Hover . | . . . Flight . | . . . Fastest Speed 50 | 50 120 120 Average Speed 119 | 108 120 120 Slowest Speed 150 | 120 120 150 Overloaded Moves . | . . . Propulsion Burnouts . | . . . Robots Hopped . | . . . Potential Cave-ins . | . . . Cave-ins Triggered . | . . . Exploration Rate (%) 32 | 3 42 52 Regions Visited 2 Branch Regions 1 Pre-discovered Areas 1 | . . 1 Known Exits Taken . | . . . Unknown Exits Taken 2 | 1 1 . Scrap Searched 2 | . . 2 Spaces Dug . | . . . Terrain Destroyed 29 | . 11 18 Melee . | . . . Projectile . | . . . AOE 29 | . 11 18 Terrain Rammed . | . . . Walls Destroyed . | . . . Machines Disabled . | . . . Actions | -11 -10 -10 --------- Run | Yrd Mat Min Total 697 | 53 274 370 Wait 38 | . 9 29 Move 568 | 37 221 310 Hop . | . . . Pick Up 19 | 10 7 2 Fast Attach 1 | . 1 . Attach 10 | 6 3 1 Detach . | . . . Swap 3 | . . 3 Drop 3 | . . 3 Fire 42 | . 33 9 Melee . | . . . Ram . | . . . Kick 13 | . . 13 Crush . | . . . Escape Stasis . | . . . Rewire . | . . . Trap . | . . . Miscellaneous . | . . . Route ------- -11/Scrapyard -10/Materials -10/Mines (discovered 1 exit: [*Mat]) History --------- Turn | Location | Event 5 | -11/Scrapyard | Discovered new exit (range 16) 58 | -11/Scrapyard | Entered Materials 306 | -10/Materials | Build established: Mutant 317 | -10/Materials | Lost 3 parts (1p1u1w) 428 | -10/Materials | Discovered new exit (range 6) 434 | -10/Materials | Entered Mines 438 | -10/Mines | Discovered new exit (range 5) 690 | -10/Mines | Found a hidden stash of uninstalled traps 777 | -10/Mines | Learned location of Storage (-8) 800 | -10/Mines | Assembled infested the area 820 | -10/Mines | A weapon hastily lodged in a ceiling crevice suddenly fell to the ground 879 | -10/Mines | Core integrity fell below 50% 882 | -10/Mines | Core integrity fell below 20% 883 | -10/Mines | Destroyed by D-53 Grenadier with Mini Grenade Launcher Last Messages --------------- under some rubble with a note attached: "One is never enough." 00823_ Dropped Lgt. Ion Engine. 00823_ Acquired Enh. Flamer. 00863_ Aluminum Leg destroyed. 00866_ K-01 Serf destroyed. 00869_ as-69380 destroyed. 00869_ Knocked back. 00871_ Enh. Flamer destroyed. 00871_ Critical hit (Destroy). 00871_ Aluminum Leg destroyed. 00873_ Ion Engine destroyed. 00874_ C-45 Heavy ARC bursts open, deploying its payload. 00874_ D-53 Grenadier unfolds itself. 00875_ as-27946 destroyed. 00876_ as-07753 destroyed. 00877_ as-45568 destroyed. 00880_ Lgt. Assault Rifle destroyed. 00880_ as-97298 destroyed. Map ----- +----------------------------------------------------+ | | | | | | | ?????????????????????????????????????????????????? | | ?????????????????????????????????????????????????? | | ?????????????????????????????????????????????????? | | ?????????????##??????????????????????????????????? | | ####????????## ##????????????????????????????????? | | #????????# #????????????????????????????????? | | ## #????????# #???????###??????????????????????? | | ## ####??????# ##?????? ##?????????????????????? | | #??????# ##????? #?????????????????????? | | #??????# ##???? #?????????????????????? | | ######?# #??## #??????????????????????? | | """ ## #### #?## #???????????????????????? | | """ # ### #### #???????????????????????? | | """ # ## #### #????????????????????????? | | ####### ### #####????????????????????? | | ?????## u #????????????????????? | | ###### ## d #????????????????????? | | #### d ######## ?????????? | | #??## aa% a ??????????? | | ##??# ! ??????????? | | #?# ## = #### ???????????? | | #### ## #### ##??????????????????? | | #??## ### ##??# @ #??????????????????? | | #???## ##?####???# #??????????????????? | | #????####?????????## #??????????????????? | | ###??????????????????## ##??????????????????? | | ???????????????????### ##???????????????????? | | ????????????????#### ##????????????????????? | | ########???????## ##????????????????????? | | #??###?## ##???????????????????? | | ###### #?## ## #???????????????????? | | ???### ### ##??????????????????? | | ??## ### #??????????????????? | | ??# ### ### #??????????????????? | | ??# #?####?## #??????????????????? | | ?## ##???????# * ##??????????????????? | | ## ###????????## ##???????????????????? | | # ##???????????# #####????????????????????? | | ##???????###### ##????????????????????????? | | ##?????## #######?????????????????????????? | | ####### ##?????????????????????????????? | | # #?????????????????????????????? | | # ## # #?????????????????????????????? | | ## #### ## #????????????????????????????? | | #?# #### #### #????????????????????????????? | | ??# ###???# ##????????????????????????????? | | ??# ### #?????###?????????????????????????????? | +----------------------------------------------------+ Best States ------------- Heat Dissipation 35 Energy Generation 10 Energy Capacity 250 Matter Stores 112 Matter Capacity 300 Sight Range 16 Robot Scan Range 14 Terrain Scan Density 10 Evasion (%) 55 Item Schematics ----------------- None Robot Schematics ------------------ None Fabricated ------------ Nothing Repaired ---------- Nothing Studied --------- None Alien Tech Used ----------------- None Achievements -------------- Let's See Who's Tougher Oops Challenges ------------ None Game ------ Seed DispersalFieldthrustCape Manual? 0 Play Time 00:13:20 Cumulative 2.3 hours Start 2026.03.19 @ 03:07:06 End 2026.03.19 @ 03:18:41 Sessions 1 Manual Loads 0 Difficulty Rogue Special Mode None Game No. 5 Rogue 5 Adventurer 0 Explorer 0 Win Type - Total 0 Types 0/0/0/0/0/0/0/0/0/0 Lore% 0 Gallery% 4 Achievement% 5 Wizard Run 0 Options --------- Layout 1 ASCII 0 Keyboard 0 Movement Mouse Keybinds 0 Fullscreen 2 Font 24/Smallcaps Map View 50x35 Zoom Use 0% Tactical HUD 1 Map Filters NONE Filters NONE Steam 1 RUN: 7073b024-c287-482c-b3c9-10fcea78d453